bitfinex/quotes_SOLUSD_20250413
["timestamp","ask_amount","ask_price","bid_price","bid_amount"]
[1744538600910,80.976,131.14,131.1,0.063]
[1744538601415,80.976,131.14,131.11,7.6399]
[1744538601789,80.976,131.14,131.12,7.6266]
[1744538602411,7.02,131.16,131.12,7.6266]
[1744538602710,0.14216157,131.19,131.12,7.6266]
[1744538603427,0.14216157,131.19,131.1,0.063]
[1744538603428,19.07613357,131.17,131.1,0.063]
[1744538603894,0.28432314,131.14,131.1,0.063]
[1744538604090,80.976,131.13,131.1,0.063]
[1744538604289,7.02,131.14,131.1,0.063]
[1744538604693,80.976,131.17,131.1,0.063]
[1744538605110,80.976,131.17,131.11,1.90526003]
[1744538605317,80.976,131.17,131.12,6.0657]
[1744538605915,80.976,131.17,131.14,7.6254]
[1744538606594,88.5998,131.17,131.13,1.90526003]
[1744538606793,88.5998,131.17,131.12,6.0657]
[1744538607305,80.976,131.17,131.12,13.692]
[1744538607913,88.5997,131.17,131.12,6.0657]
[1744538608597,80.976,131.17,131.12,13.6921]
[1744538609391,88.5997,131.17,131.12,13.6921]
[1744538609594,88.5997,131.17,131.13,1.90527976]
[1744538609812,80.976,131.17,131.13,1.90527976]
[1744538610020,80.976,131.17,131.13,9.53107976]
[1744538610214,88.5997,131.17,131.13,9.53107976]
[1744538610514,88.5997,131.17,131.13,7.6258]
[1744538610723,80.976,131.17,131.13,7.6258]
[1744538615120,80.976,131.17,131.14,1.90511098]
[1744538615426,80.976,131.17,131.14,9.53051098]
[1744538616526,80.976,131.17,131.13,7.626]
[1744538618228,80.976,131.17,131.14,1.90513533]
[1744538619229,80.976,131.17,131.13,7.626]
[1744538620124,7.6208,131.22,131.13,26.691]
[1744538620323,0.14216157,131.21,131.13,26.691]
[1744538620625,0.14216157,131.21,131.14,2.49170481]
[1744538621121,33.6217,131.21,131.15,9.52914989]
[1744538622436,0.03,131.23,131.16,9.52854989]
[1744538622631,0.03,131.23,131.18,18.64964886]
[1744538623138,0.03,131.23,131.19,1.90484989]
[1744538623841,0.03,131.23,131.2,1.90484989]
[1744538624137,0.03,131.23,131.2,4.39218406]
[1744538624338,0.03,131.23,131.21,7.6213]
[1744538626313,0.03,131.23,131.2,18.64964886]
[1744538627425,0.03,131.23,131.21,4.38242602]
[1744538627831,0.03,131.23,131.22,7.6207]
[1744538628015,0.03,131.23,131.22,13.8559]
[1744538631741,0.03,131.23,131.2,7.6217]
[1744538632062,0.03,131.23,131.18,6.0199]
[1744538632925,0.03,131.23,131.19,7.6223]
[1744538633727,0.03,131.23,131.17,1.5996]
[1744538633728,0.17216157,131.23,131.17,1.5996]
[1744538633931,0.17216157,131.23,131.15,25.0818]
[1744538633932,80.976,131.22,131.16,7.624]
[1744538634840,88.5972,131.22,131.16,7.624]
[1744538635246,80.976,131.22,131.16,26.27364886]
[1744538635832,80.976,131.22,131.17,18.64964886]
[1744538636944,80.976,131.22,131.18,7.6231]
[1744538638025,80.976,131.22,131.18,26.6808]
[1744538639443,0.03,131.23,131.19,20.29954886]
[1744538641147,0.03,131.23,131.2,1.90381295]
[1744538641540,0.03,131.23,131.21,7.6213]
[1744538643748,0.03,131.23,131.2,26.6766]
[1744538644132,0.03,131.23,131.21,25.41983357]
[1744538644345,0.03,131.28,131.23,18.64964886]
[1744538645241,0.03,131.28,131.21,25.41983357]
[1744538645443,0.03,131.28,131.24,26.0]
[1744538645835,0.03,131.28,131.25,7.619]
[1744538649656,0.03,131.28,131.24,7.6194]
[1744538650065,81.006,131.28,131.22,7.6207]
[1744538651658,7.6178,131.27,131.21,7.6213]
[1744538651859,7.6178,131.27,131.2,7.6217]
[1744538652040,81.11816157,131.26,131.2,7.6217]
[1744538652834,81.11816157,131.26,131.19,9.2722]
[1744538653556,7.6196,131.24,131.17,7.6236]
[1744538653859,14.5996,131.24,131.17,7.6236]
[1744538654445,0.14216157,131.23,131.16,7.6241]
[1744538654963,0.42648471,131.23,131.15,7.6642]
[1744538655262,0.42648471,131.23,131.15,13.6913]
[1744538655635,7.6207,131.22,131.15,13.6913]
[1744538656251,0.14216157,131.21,131.15,6.0666]
[1744538656453,0.14216157,131.19,131.12,1.5976]
[1744538656752,7.12216157,131.19,131.13,1.90489584]
[1744538657347,7.6231,131.18,131.13,9.53059584]
[1744538657658,6.98,131.19,131.14,18.64964886]
[1744538657872,80.976,131.2,131.15,0.14216157]
[1744538658045,6.98,131.23,131.16,6.4778]
[1744538658247,6.98,131.23,131.17,1.90434346]
[1744538659062,6.98,131.23,131.18,1.90434346]
[1744538659665,87.956,131.27,131.19,26.27214886]
[1744538660264,81.11816157,131.26,131.19,7.6225]
[1744538660453,0.28432314,131.25,131.2,1.90434346]
[1744538661353,81.11816157,131.26,131.2,1.90434346]
[1744538661552,81.11816157,131.26,131.18,7.6228]
[1744538661858,81.11816157,131.26,131.16,44.18714886]
[1744538661859,88.73706157,131.26,131.17,45.33244886]
[1744538662245,88.73706157,131.26,131.18,1.90425818]
[1744538662465,80.976,131.26,131.19,18.64964886]
[1744538662970,80.976,131.26,131.2,1.90425818]
[1744538663469,88.5944,131.26,131.2,1.90425818]
[1744538663759,99.76781043,131.25,131.17,7.6236]
[1744538663960,0.28432314,131.24,131.17,7.6236]
[1744538664172,81.11816157,131.25,131.17,7.6236]
[1744538665065,81.11816157,131.25,131.18,1.90440179]
[1744538666062,88.73776157,131.25,131.19,7.6225]
[1744538666276,80.976,131.25,131.2,18.64964886]
[1744538666572,80.976,131.25,131.19,26.6788]
[1744538667171,80.976,131.25,131.2,4.39086907]
[1744538667770,80.976,131.25,131.21,2.48690694]
[1744538668073,80.976,131.25,131.22,9.52446213]
[1744538668773,80.976,131.25,131.22,1.90396213]
[1744538668976,88.595,131.25,131.17,7.6236]
[1744538669273,88.595,131.25,131.18,2.48657711]
[1744538669757,0.14216157,131.24,131.18,2.48657711]
[1744538669960,0.14216157,131.24,131.17,7.6236]
[1744538670272,7.76226157,131.24,131.19,1.90426733]
[1744538670856,80.976,131.23,131.19,1.90426733]
[1744538671564,7.6207,131.22,131.17,7.6236]
[1744538672870,7.6207,131.22,131.16,7.6242]
[1744538673052,14.6007,131.22,131.16,7.6242]
[1744538673575,14.6007,131.22,131.17,1.90454318]
[1744538673773,14.6007,131.22,131.17,9.52804318]
[1744538674475,14.6007,131.22,131.17,7.6235]
[1744538675871,14.6007,131.22,131.16,7.6242]
[1744538676179,14.6007,131.22,131.17,1.90453335]
[1744538676578,0.14216157,131.21,131.17,1.90453335]
[1744538676876,0.42648471,131.21,131.17,1.90453335]
[1744538677179,19.07613357,131.21,131.17,1.90453335]
[1744538677367,0.14216157,131.19,131.13,23.58566289]
[1744538677572,80.976,131.18,131.13,15.95996289]
[1744538677873,81.11816157,131.17,131.13,15.95996289]
[1744538678070,95.5799,131.17,131.13,15.95996289]
[1744538680479,0.14216157,131.16,131.13,15.95996289]
[1744538681658,7.76686157,131.16,131.13,15.95996289]
[1744538683060,80.976,131.15,131.1,0.063]
[1744538684589,7.6254,131.14,131.1,0.063]
[1744538689184,0.14216157,131.13,131.1,0.063]
[1744538690066,7.76846157,131.13,131.1,0.063]
[1744538692595,87.896,131.15,131.1,0.063]
[1744538694181,95.5211,131.15,131.1,0.063]
[1744538694570,7.76786157,131.14,131.1,0.063]
[1744538699601,87.896,131.15,131.1,0.063]
[1744538700776,0.14216157,131.14,131.1,0.063]
[1744538701186,26.0,131.12,131.1,0.063]
[1744538701385,106.976,131.12,131.1,0.063]
[1744538701585,7.6271,131.11,131.1,0.063]
[1744538702800,7.76926157,131.11,131.1,0.063]
[1744538710297,114.6026,131.12,131.1,0.063]
[1744538710499,0.14216157,131.11,131.1,0.063]
[1744538710710,0.42648471,131.11,131.1,0.063]
[1744538711082,19.07613357,131.11,131.1,0.063]
[1744538711691,19.07613357,131.11,131.09,0.0001]
[1744538711890,25.71181043,131.1,131.09,0.0001]
[1744538712091,25.99613357,131.1,131.09,0.0001]
[1744538712292,33.62383357,131.1,131.09,0.0001]
[1744538712998,14.68986157,131.1,131.09,0.0001]
[1744538713183,14.97418471,131.1,131.09,0.0001]
[1744538716000,14.68986157,131.1,131.09,0.0001]
[1744538716810,6.92,131.1,131.09,0.0001]
[1744538716992,7.76836157,131.13,131.09,0.0001]
[1744538717191,6.92,131.14,131.09,0.0001]
[1744538720908,6.92,131.14,131.1,1.90552476]
[1744538721093,6.92,131.14,131.09,0.0001]
[1744538721802,6.92,131.14,131.1,4.39862982]
[1744538722003,81.0,131.16,131.1,1.90548675]
[1744538722315,88.6243,131.16,131.09,0.0001]
[1744538722516,88.6243,131.16,131.1,2.49388819]
[1744538722710,81.0,131.16,131.11,1.90548536]
[1744538723020,81.0,131.16,131.09,0.0001]
[1744538723313,6.04217638,131.23,131.09,0.0001]
[1744538723314,81.0,131.24,131.16,26.0]
[1744538723505,81.0,131.24,131.18,18.64964886]
[1744538723817,81.0,131.24,131.19,1.5161]
[1744538724016,81.0,131.24,131.19,3.42052476]
[1744538724405,81.0,131.24,131.19,1.5161]
[1744538725195,81.0,131.24,131.2,7.6219]
[1744538725996,81.0,131.24,131.19,9.1384]
[1744538726207,81.0,131.24,131.2,1.90413795]
[1744538726402,81.0,131.24,131.19,9.1384]
[1744538727013,88.6197,131.24,131.19,9.1384]
[1744538727215,88.6197,131.24,131.2,4.39280447]
[1744538727401,81.0,131.24,131.2,2.48865907]
[1744538727716,81.0,131.24,131.19,28.1947]
[1744538727919,81.0,131.24,131.2,1.90412583]
[1744538728124,81.0,131.24,131.19,28.1947]
[1744538728299,81.0,131.24,131.19,9.1384]
[1744538728495,88.6196,131.24,131.2,1.90412935]
[1744538728695,81.14216157,131.23,131.2,1.90412935]
[1744538728900,81.14216157,131.23,131.17,6.1282]
[1744538729108,81.14216157,131.23,131.18,2.49158855]
[1744538729310,88.76236157,131.23,131.17,13.7518]
[1744538729631,88.76236157,131.23,131.18,1.90439512]
[1744538729821,88.76236157,131.23,131.16,1.5787]
[1744538730010,81.0,131.22,131.17,4.39726969]
[1744538730411,81.0,131.22,131.16,1.5787]
[1744538730611,81.0,131.22,131.18,1.90453926]
[1744538730922,7.6213,131.21,131.18,1.90453926]
[1744538731122,7.6213,131.21,131.16,9.2028]
[1744538731504,7.6213,131.21,131.17,1.90459821]
[1744538731700,81.14216157,131.2,131.18,1.90459821]
[1744538732100,0.28432314,131.19,131.18,1.90459821]
[1744538732317,81.14216157,131.2,131.13,7.6259]
[1744538732515,87.9,131.19,131.13,7.6259]
[1744538734223,95.523,131.19,131.13,7.6259]
[1744538736724,0.14216157,131.18,131.12,9.291]
[1744538736903,81.14216157,131.18,131.11,6.089]
[1744538738125,7.6236,131.17,131.11,6.089]
[1744538739609,7.6236,131.17,131.11,13.7157]
[1744538740127,81.14216157,131.16,131.1,7.6275]
[1744538741207,7.6248,131.15,131.1,7.6275]
[1744538744928,7.6248,131.15,131.09,9.2005]
[1744538745130,81.14216157,131.14,131.09,0.0001]
[1744538745429,81.0,131.13,131.09,0.0001]
[1744538745630,0.14216157,131.12,131.09,0.0001]
[1744538746809,19.07613357,131.12,131.09,0.0001]
[1744538747010,0.14216157,131.1,131.09,0.0001]
[1744538747207,81.14216157,131.1,131.09,0.0001]
[1744538747832,81.0,131.1,131.09,0.0001]
[1744538748332,0.14216157,131.13,131.09,0.0001]
[1744538748333,7.6262,131.13,131.09,0.0001]
[1744538750636,95.5256,131.14,131.09,0.0001]
[1744538756338,26.70223357,131.13,131.09,0.0001]
[1744538756715,0.14216157,131.11,131.09,0.0001]
[1744538757515,7.6277,131.1,131.09,0.0001]
[1744538758631,26.70383357,131.1,131.09,0.0001]
[1744538759028,7.76986157,131.1,131.09,0.0001]
[1744538759425,7.6273,131.11,131.09,0.0001]
[1744538759626,0.14216157,131.1,131.09,0.0001]
[1744538760733,33.76986157,131.1,131.09,0.0001]
[1744538761239,7.76986157,131.1,131.09,0.0001]
[1744538763646,7.6271,131.12,131.09,0.0001]
[1744538764020,0.42648471,131.11,131.09,0.0001]
[1744538765141,26.0,131.11,131.09,0.0001]
[1744538767041,0.14216157,131.13,131.09,0.0001]
[1744538767042,7.6266,131.12,131.09,0.0001]
[1744538770026,7.6275,131.11,131.09,0.0001]
[1744538771426,6.92,131.14,131.09,0.0001]
[1744538772348,95.5454,131.14,131.09,0.0001]
[1744538772531,95.5454,131.14,131.09,7.6284]
[1744538773745,87.92,131.14,131.09,7.6284]
[1744538774558,7.6236,131.17,131.09,26.6992]
[1744538774753,87.95,131.18,131.09,26.6992]
[1744538775843,95.5733,131.18,131.09,26.6992]
[1744538778054,95.5733,131.18,131.14,2.77479596]
[1744538778424,87.95,131.18,131.14,10.40009596]
[1744538778651,87.95,131.18,131.15,4.42607615]
[1744538778824,87.95,131.18,131.15,7.20087211]
[1744538779430,95.5731,131.18,131.16,2.5209193]
[1744538779827,95.71526157,131.18,131.17,1.90515685]
[1744538780229,95.71526157,131.18,131.17,1.90515475]
[1744538780430,33.64923357,131.18,131.17,1.90515475]
[1744538780834,58.16503357,131.18,131.17,1.90515475]
[1744538781148,0.14216157,131.14,131.1,8.1341]
[1744538781451,81.0,131.14,131.1,15.7617]
[1744538781649,81.0,131.14,131.11,2.78828205]
[1744538782054,81.0,131.14,131.12,7.6266]
[1744538782455,87.95,131.18,131.12,7.6266]
[1744538782954,95.5732,131.18,131.13,5.28791341]
[1744538783134,95.5732,131.18,131.13,2.78266576]
[1744538783335,95.5732,131.18,131.12,7.6266]
[1744538783654,95.5732,131.18,131.1,27.2035]
[1744538783655,0.14216157,131.17,131.13,2.78196652]
[1744538784154,88.6242,131.16,131.1,15.7617]
[1744538784851,88.6242,131.16,131.11,5.29166196]
[1744538785559,88.6243,131.16,131.11,12.91856196]
[1744538785762,88.6243,131.16,131.12,5.29166196]
[1744538786538,88.6243,131.16,131.11,7.6269]
[1744538788549,81.0,131.16,131.12,2.51109731]
[1744538788738,81.0,131.16,131.13,2.78700413]
[1744538789061,6.95,131.18,131.14,2.5105573]
[1744538789255,6.95,131.18,131.11,26.6948]
[1744538789561,14.5731,131.18,131.12,2.78575223]
[1744538789860,14.5731,131.18,131.12,5.29403868]
[1744538790440,14.5731,131.18,131.13,2.50828645]
[1744538790755,14.5731,131.18,131.13,5.29403868]
[1744538791162,14.5731,131.18,131.14,2.50828645]
[1744538792061,14.5731,131.18,131.13,7.6259]
[1744538792850,14.5731,131.18,131.14,2.78513797]
[1744538793759,14.5731,131.18,131.14,10.41043797]
[1744538793957,14.5731,131.18,131.14,2.78513797]
[1744538794150,0.14216157,131.17,131.11,7.6271]
[1744538794561,81.0,131.16,131.1,15.7616]
[1744538794774,81.0,131.16,131.12,2.78584422]
[1744538794960,7.6248,131.15,131.12,2.78584422]
[1744538795152,7.6248,131.15,131.1,15.7616]
[1744538795343,7.6248,131.15,131.11,5.29531931]
[1744538795544,7.6248,131.15,131.12,2.78619644]
[1744538796239,7.6248,131.15,131.1,15.7616]
[1744538796766,7.6248,131.15,131.1,8.1341]
[1744538796939,7.6248,131.15,131.11,2.78712121]
[1744538797358,0.14216157,131.14,131.11,2.78712121]
[1744538797863,0.14216157,131.14,131.1,8.1341]
[1744538798643,7.626,131.13,131.1,8.1341]
[1744538799250,7.626,131.13,131.09,0.0001]
[1744538799443,81.14216157,131.12,131.1,2.78897755]
[1744538800368,81.14216157,131.12,131.09,0.0001]
[1744538800669,7.6277,131.1,131.09,0.0001]
[1744538801252,7.76986157,131.1,131.09,0.0001]
[1744538801456,8.05418471,131.1,131.09,0.0001]
[1744538803973,7.6277,131.1,131.09,0.0001]
[1744538804164,81.0,131.11,131.09,0.0001]
[1744538805062,81.0,131.11,131.09,1.5001]
[1744538805953,81.0,131.11,131.09,0.0001]
[1744538807076,88.6272,131.11,131.09,0.0001]
[1744538807979,81.0,131.11,131.09,0.0001]
[1744538809692,81.0,131.11,131.09,6.1883]
[1744538810176,6.9,131.13,131.09,6.1883]
[1744538811393,6.9,131.13,131.09,13.8164]
[1744538814680,6.9,131.13,131.09,6.1883]
[1744538814885,14.5261,131.13,131.09,0.0001]
[1744538819391,6.07462481,131.13,131.09,0.0001]
[1744538819872,13.70072481,131.13,131.09,0.0001]
[1744538820390,6.07462481,131.13,131.09,0.0001]
[1744538820689,13.70072481,131.13,131.09,0.0001]
[1744538822081,6.07462481,131.13,131.09,0.0001]
[1744538823395,81.0,131.15,131.1,2.50766775]
[1744538824172,81.0,131.15,131.11,7.6271]
[1744538826498,81.0,131.15,131.12,7.7904]
[1744538826874,6.9,131.17,131.12,7.7904]
[1744538827996,0.14216157,131.16,131.12,7.7904]
[1744538828397,100.07613357,131.16,131.09,1.5061]
[1744538828580,7.626,131.13,131.09,0.0001]
[1744538830716,6.9,131.12,131.09,0.0001]
[1744538830887,0.14216157,131.11,131.09,0.0001]
[1744538832234,26.0,131.1,131.09,0.0001]
[1744538832517,26.42648471,131.1,131.09,0.0001]
[1744538832890,34.05418471,131.1,131.09,0.0001]
[1744538836523,52.70383357,131.1,131.09,0.0001]
[1744538837100,26.0,131.06,131.04,0.063]
[1744538837420,0.14216157,131.05,131.04,0.063]
[1744538838504,7.77276157,131.05,131.04,0.063]
[1744538841302,8.05708471,131.05,131.04,0.063]
[1744538841711,26.70673357,131.05,131.04,0.063]
[1744538842308,26.70673357,131.05,131.04,0.0001]
[1744538844199,0.28432314,131.04,131.03,0.0001]
[1744538844410,19.07613357,131.04,131.03,0.0001]
[1744538844810,0.14216157,131.04,131.03,0.0001]
[1744538845011,0.42648471,131.04,131.03,0.0001]
[1744538845412,19.07613357,131.04,131.03,0.0001]
[1744538846107,8.05768471,131.04,131.03,0.0001]
[1744538846408,0.42648471,131.02,131.01,0.063]
[1744538848230,8.05888471,131.02,131.01,0.063]
[1744538848429,44.79181043,131.0,130.99,0.063]
[1744538848726,51.71181043,131.0,130.99,0.063]
[1744538848930,33.34648471,131.0,130.99,0.063]
[1744538849227,33.06216157,131.0,130.99,0.063]
[1744538850431,40.69566157,131.0,130.99,0.063]
[1744538853013,14.69566157,131.0,130.99,0.063]
[1744538853314,6.92,131.0,130.99,0.063]
[1744538853831,14.5535,131.0,130.99,0.063]
[1744538854034,14.69566157,131.0,130.99,0.063]
[1744538854632,33.62963357,131.0,130.99,0.063]
[1744538856747,26.14216157,130.96,130.95,0.063]
[1744538856923,0.28432314,130.95,130.93,0.03]
[1744538857243,6.92,130.94,130.93,0.03]
[1744538858643,7.06216157,130.94,130.93,0.03]
[1744538859130,14.69916157,130.94,130.93,0.03]
[1744538859318,14.98348471,130.94,130.93,0.03]
[1744538859651,33.63313357,130.94,130.93,0.03]
[1744538861221,44.79181043,130.91,130.9,0.03]
[1744538862129,26.14216157,130.91,130.9,0.03]
[1744538863352,33.78096157,130.91,130.9,0.03]
[1744538864763,52.71493357,130.91,130.9,0.03]
[1744538864956,33.78096157,130.91,130.9,0.03]
[1744538865329,0.14216157,130.91,130.9,0.03]
[1744538866167,7.78096157,130.91,130.9,0.03]
[1744538868360,34.06528471,130.91,130.9,0.03]
[1744538870739,33.78096157,130.91,130.9,0.03]
[1744538870939,0.14216157,130.91,130.9,0.03]
[1744538871249,7.78096157,130.91,130.9,0.03]
[1744538871947,26.14216157,130.92,130.9,0.03]
[1744538872260,40.70036157,130.92,130.9,0.03]
[1744538873565,32.92,130.92,130.9,0.03]
[1744538876151,40.5584,130.92,130.9,0.03]
[1744538877579,32.92,130.92,130.9,0.03]
[1744538878277,40.5583,130.92,130.9,0.03]
[1744538881175,19.07613357,130.91,130.9,0.03]
[1744538882373,0.14216157,130.91,130.9,0.03]
[1744538882560,45.07613357,130.91,130.9,0.03]
[1744538882961,52.71493357,130.91,130.9,0.03]
[1744538885477,52.71493357,130.91,130.9,0.0001]
[1744538889569,0.14216157,130.86,130.85,0.03]
[1744538889882,7.06216157,130.86,130.85,0.03]
[1744538890189,7.34648471,130.86,130.85,0.03]
[1744538890371,7.06216157,130.86,130.85,0.03]
[1744538890564,6.92,130.86,130.85,0.03]
[1744538890963,14.5617,130.86,130.85,0.03]
[1744538891169,14.70386157,130.86,130.85,0.03]
[1744538895271,14.98818471,130.86,130.85,0.03]
[1744538895783,33.63783357,130.86,130.85,0.03]
[1744538898379,7.78386157,130.86,130.85,0.03]
[1744538898577,14.70386157,130.86,130.85,0.03]
[1744538898891,6.92,130.86,130.85,0.03]
[1744538899078,6.92,130.86,130.85,1.6695]
[1744538900174,6.92,130.86,130.85,8.2587]
[1744538903275,7.6401,130.89,130.85,8.2587]
[1744538903477,6.92,130.88,130.85,8.2587]
[1744538904092,14.5607,130.88,130.85,8.2587]
[1744538904398,0.14216157,130.87,130.85,0.03]
[1744538904593,0.42648471,130.87,130.85,0.03]
[1744538904802,26.14216157,130.86,130.85,0.03]
[1744538904981,107.14216157,130.86,130.85,0.03]
[1744538905379,126.07613357,130.86,130.85,0.03]
[1744538905776,133.71783357,130.86,130.85,0.03]
[1744538909601,0.42648471,130.85,130.84,0.03]
[1744538910179,0.14216157,130.81,130.79,0.03]
[1744538910502,6.92,130.8,130.79,0.03]
[1744538912202,81.0,130.86,130.79,0.03]
[1744538912508,0.14216157,130.85,130.78,46.68230192]
[1744538912685,0.42648471,130.85,130.78,46.68230192]
[1744538912886,0.14216157,130.83,130.78,46.68230192]
[1744538913087,6.92,130.82,130.78,46.68230192]
[1744538913687,14.5641,130.82,130.78,39.03600192]
[1744538913884,0.14216157,130.81,130.78,39.03600192]
[1744538914833,14.5641,130.82,130.78,46.68230192]
[1744538915403,14.5641,130.82,130.78,39.03600192]
[1744538915784,14.5641,130.82,130.78,46.68230192]
[1744538916611,14.5641,130.82,130.78,39.03600192]
[1744538917490,88.643,130.84,130.78,46.68240192]
[1744538917698,95.563,130.84,130.78,46.68240192]
[1744538917904,0.28432314,130.83,130.78,39.03600192]
[1744538918090,0.42648471,130.83,130.78,39.03600192]
[1744538918499,81.0,130.82,130.78,39.03600192]
[1744538919814,88.6442,130.82,130.78,39.03600192]
[1744538921616,0.42648471,130.81,130.78,32.72030192]
[1744538921816,81.0,130.82,130.78,32.72030192]
[1744538922309,81.0,130.82,130.79,6.5825]
[1744538922510,81.0,130.82,130.8,1.5465]
[1744538922689,6.92,130.84,130.8,1.5465]
[1744538923804,6.92,130.84,130.82,7.644]
[1744538926007,6.92,130.84,130.81,7.6446]
[1744538926213,81.0,130.87,130.81,7.6446]
[1744538926398,81.0,130.87,130.82,6.2424]
[1744538927018,81.0,130.87,130.83,2.51759629]
[1744538927798,81.0,130.87,130.82,6.2424]
[1744538928200,81.0,130.87,130.83,7.6435]
[1744538930801,88.6412,130.87,130.83,7.6435]
[1744538931823,81.0,130.87,130.83,7.6435]
[1744538947134,88.6412,130.87,130.83,7.6435]
[1744538947430,88.6412,130.87,130.8,1.5465]
[1744538947639,88.6412,130.87,130.81,10.15658346]
[1744538948232,88.6412,130.87,130.81,7.6443]
[1744538949138,88.6412,130.87,130.82,10.15610612]
[1744538949735,88.6412,130.87,130.82,7.6436]
[1744538950036,88.6412,130.87,130.81,7.6444]
[1744538953236,88.6412,130.87,130.8,7.6452]
[1744538953651,88.6412,130.87,130.81,2.51495873]
[1744538954558,88.6412,130.87,130.8,7.6452]
[1744538954925,88.6412,130.87,130.8,26.7583]
[1744538955131,81.0,130.87,130.8,26.7583]
[1744538956934,81.0,130.87,130.81,2.51756087]
[1744538957433,81.0,130.87,130.82,2.51756087]
[1744538957634,81.0,130.87,130.83,7.6435]
[1744538959323,0.063,130.88,130.83,7.6435]
[1744538959525,0.063,130.88,130.82,19.1097]
[1744538959526,0.063,130.88,130.84,2.49024001]
[1744538960229,0.063,130.88,130.85,2.49024001]
[1744538961041,0.063,130.88,130.86,2.49024001]
[1744538961216,0.063,130.88,130.87,7.6411]
[1744538961640,0.063,130.88,130.87,10.13134001]
[1744538963741,0.063,130.88,130.87,28.78098887]
[1744538964723,0.0001,130.88,130.87,29.20747358]
[1744538964941,0.0001,130.88,130.87,30.70797358]
[1744538967743,0.0001,130.88,130.87,30.28148887]
[1744538968045,0.0001,130.88,130.87,10.13134001]
[1744538976545,0.0001,130.88,130.87,2.49024001]
[1744538977051,0.0001,130.88,130.82,34.09422661]
[1744538977052,0.0001,130.88,130.85,7.6421]
[1744538977944,0.0001,130.88,130.83,26.7522]
[1744538978537,0.0001,130.88,130.84,21.13528615]
[1744538979536,0.0001,130.88,130.85,2.48563729]
[1744538980331,0.0001,130.88,130.84,7.6425]
[1744538981059,32.264,130.88,130.82,7.644]
[1744538981246,6.264,130.88,130.79,61.05966803]
[1744538981558,6.264,130.88,130.81,18.64964886]
[1744538981761,6.264,130.88,130.82,2.48683604]
[1744538982253,6.264,130.88,130.83,7.6435]
[1744538983340,13.9047,130.88,130.83,7.6435]
[1744538983536,13.9047,130.88,130.82,7.644]
[1744538984336,13.9047,130.88,130.8,19.1131]
[1744538984337,13.9047,130.88,130.8,7.6452]
[1744538984858,13.9047,130.88,130.81,2.48832267]
[1744538985441,13.9047,130.88,130.82,10.13212267]
[1744538985848,13.9047,130.88,130.82,2.48832267]
[1744538986469,13.9047,130.88,130.81,7.6446]
[1744538987245,13.9047,130.88,130.82,2.48832267]
[1744538987664,13.9047,130.88,130.82,10.13192267]
[1744538988539,13.9047,130.88,130.82,7.6436]
[1744538989260,13.9047,130.88,130.8,7.6452]
[1744538989466,13.9047,130.88,130.8,45.40794886]
[1744538989658,13.9047,130.88,130.81,2.48775472]
[1744538990163,13.9047,130.88,130.82,2.48775472]
[1744538990659,13.9047,130.88,130.83,7.6435]
[1744538991868,0.0001,130.88,130.82,18.64964886]
[1744538992749,0.0001,130.88,130.83,2.48614833]
[1744538993562,0.0001,130.88,130.82,18.64964886]
[1744538994469,0.0001,130.88,130.83,7.6435]
[1744538994962,0.0001,130.88,130.84,2.48531721]
[1744538995466,0.14226157,130.88,130.84,2.48531721]
[1744538995870,0.14226157,130.88,130.81,7.6444]
[1744538996966,7.6411,130.87,130.82,2.48813652]
[1744538997757,7.6411,130.87,130.8,7.6452]